bitfinex-derivatives/quotes_ETHF0:USTF0_20250926
["timestamp","ask_amount","ask_price","bid_price","bid_amount"]
[1758902600303,0.00251181,3955.3,3955.1,0.3376]
[1758902601008,0.00251181,3955.3,3955.1,0.45483]
[1758902601307,0.0252,3955.9,3955.7,0.45476]
[1758902601609,0.0252,3955.9,3955.8,0.6026]
[1758902602112,3.2078,3958.1,3957.5,0.1339]
[1758902602405,0.00197732,3958.1,3958.0,5.73367825]
[1758902603209,0.00197732,3958.1,3958.0,6.00167825]
[1758902604106,0.00197732,3958.1,3958.0,11.00167825]
[1758902604713,0.00197732,3958.1,3958.0,3.6793]
[1758902604903,0.00197732,3958.1,3958.0,0.7395]
[1758902605315,0.00197732,3958.1,3958.0,3.9473]
[1758902605503,3.2078,3959.1,3958.1,0.3376]
[1758902605709,3.2078,3959.1,3958.0,8.6097]
[1758902605710,3.2078,3959.1,3959.0,0.4715]
[1758902606511,3.21097696,3959.1,3959.0,0.4715]
[1758902607013,3.21097696,3959.1,3959.0,0.3376]
[1758902607408,0.4544,3958.9,3958.6,0.267]
[1758902607816,0.4544,3958.9,3958.7,0.3376]
[1758902608108,3.21097696,3959.1,3958.6,0.267]
[1758902608306,3.66535696,3959.1,3958.6,0.267]
[1758902608707,0.45439,3959.0,3958.5,0.1339]
[1758902609012,0.45439,3959.0,3958.6,0.267]
[1758902609212,0.45439,3959.0,3958.7,0.3376]
[1758902609409,0.4544,3958.9,3958.7,0.3376]
[1758902609606,3.21097696,3959.1,3958.7,0.3376]
[1758902609911,0.4544,3958.9,3958.7,0.3376]
[1758902610108,0.45441,3958.8,3958.7,0.3376]
[1758902610312,0.45439,3959.0,3958.6,0.267]
[1758902610503,0.00317696,3959.1,3958.7,0.3376]
[1758902610708,0.00317696,3959.1,3959.0,0.4715]
[1758902611011,0.00317696,3959.1,3959.0,0.7385]
[1758902611913,0.00317696,3959.1,3959.0,5.7385]
[1758902612215,0.00317696,3959.1,3959.0,0.7385]
[1758902612707,0.00317696,3959.1,3959.0,0.4715]
[1758902612913,0.00317696,3959.1,3959.0,0.7385]
[1758902613105,0.00317696,3959.1,3959.0,0.4715]
[1758902613305,0.00317696,3959.1,3959.0,0.7385]
[1758902614418,0.00317696,3959.1,3959.0,0.4715]
[1758902614610,3.21097696,3959.1,3959.0,0.4715]
[1758902615114,3.66534696,3959.1,3959.0,0.4715]
[1758902615511,0.45439,3958.9,3958.8,0.6561]
[1758902615710,0.79009,3958.9,3958.8,0.47653712]
[1758902615910,0.45451,3957.9,3957.6,0.3376]
[1758902616212,0.45451,3957.9,3957.5,0.45720999]
[1758902616213,0.3072,3957.8,3957.5,0.45720999]
[1758902616418,3.2078,3957.9,3957.5,0.45720999]
[1758902616610,0.45453,3957.7,3957.5,0.13655999]
[1758902616805,0.3072,3957.6,3957.5,0.00265999]
[1758902617011,5.3072,3957.6,3957.5,0.00265999]
[1758902617213,0.45464,3956.8,3956.2,0.4547]
[1758902617410,0.4547,3956.3,3955.9,3.2078]
[1758902617605,0.3045,3955.9,3955.2,0.45481]
[1758902617809,1.13668,3956.5,3955.2,0.45481]
[1758902617810,3.2078,3955.8,3955.2,0.45481]
[1758902618009,3.2078,3955.8,3955.4,0.45479]
[1758902618218,3.21001997,3955.8,3955.6,0.3376]
[1758902618410,0.00221997,3955.8,3955.7,0.3376]
[1758902618614,0.00221997,3955.8,3955.7,5.86677825]
[1758902618918,0.00221997,3955.8,3955.7,0.6046]
[1758902619116,0.00221997,3955.8,3955.5,0.4009]
[1758902619320,0.3045,3955.7,3955.5,0.267]
[1758902619707,0.4548,3955.4,3955.1,0.3376]
[1758902619913,0.7593,3955.4,3955.2,0.267]
[1758902620108,0.45482,3955.2,3955.1,0.3376]
[1758902620308,0.45482,3955.2,3955.0,0.45126563]
[1758902620309,3.66262,3955.2,3955.0,0.45126563]
[1758902620511,0.3041,3955.1,3955.0,0.45126563]
[1758902621313,3.66262,3955.2,3955.0,0.45126563]
[1758902621314,3.2078,3955.2,3955.0,0.45126563]
[1758902621520,3.5119,3955.2,3955.0,0.45126563]
[1758902621921,0.72179,3955.5,3955.1,0.3311]
[1758902622328,2.40642561,3957.5,3956.8,0.45463]
[1758902622626,0.1333,3958.0,3957.9,0.45451]
[1758902622924,0.1333,3958.0,3957.9,9.19848825]
[1758902623124,0.4664,3958.0,3957.9,14.19848825]
[1758902623315,0.1333,3958.5,3958.4,0.45445]
[1758902623514,0.13622345,3958.5,3958.4,9.19942825]
[1758902623721,0.13622345,3958.5,3958.4,8.92442825]
[1758902624113,0.13622345,3958.5,3958.4,9.19942825]
[1758902625329,0.46932345,3958.5,3958.4,9.19942825]
[1758902627025,0.46932345,3958.5,3958.4,8.92442825]
[1758902627220,0.46932345,3958.5,3958.4,9.19842825]
[1758902630020,0.46932345,3958.5,3958.4,8.92442825]
[1758902630221,0.46932345,3958.5,3958.4,9.19842825]
[1758902631128,0.46932345,3958.5,3958.4,9.19742825]
[1758902631325,0.46932345,3958.5,3958.4,3.2078]
[1758902631532,0.46932345,3958.5,3958.4,0.273]
[1758902632721,0.46932345,3958.5,3958.2,0.45447]
[1758902633033,0.3331,3958.4,3958.3,0.273]
[1758902633222,0.59066345,3958.5,3958.3,0.273]
[1758902633422,0.3331,3958.4,3958.3,0.273]
[1758902635330,0.78755,3958.4,3958.3,0.273]
[1758902635532,0.3331,3958.2,3958.0,8.46997825]
[1758902635730,0.3331,3958.2,3958.1,0.273]
[1758902636030,0.3331,3958.1,3958.0,3.2078]
[1758902636228,0.3331,3958.1,3957.9,0.0019696]
[1758902636432,0.92089,3958.0,3957.9,0.0019696]
[1758902637132,0.78768,3957.3,3957.2,3.2078]
[1758902638135,0.78768,3957.3,3957.2,3.20959695]
[1758902638330,0.78768,3957.3,3957.2,0.00179695]
[1758902638529,5.78768,3957.3,3957.2,0.00179695]
[1758902638730,5.3331,3957.3,3957.2,0.00179695]
[1758902638929,5.78768,3957.3,3957.2,0.00179695]
[1758902640025,0.78768,3957.3,3957.2,0.00179695]
[1758902641333,0.45471,3956.2,3956.1,0.272]
[1758902641528,0.78781,3956.2,3956.1,0.272]
[1758902641725,0.45474,3955.9,3955.5,3.2078]
[1758902641924,0.3331,3955.6,3955.5,3.2078]
[1758902642125,0.33584595,3955.6,3955.5,3.48205487]
[1758902643736,0.1333,3956.0,3955.5,8.48205487]
[1758902644037,0.1333,3956.0,3955.9,3.2078]
[1758902644335,0.1333,3956.0,3955.9,3.4798]
[1758902644634,0.13532528,3956.0,3955.9,3.4798]
[1758902645035,0.13532528,3956.0,3955.9,3.2078]
[1758902645237,0.13532528,3956.0,3955.9,3.4798]
[1758902645735,0.48992528,3956.0,3955.9,3.4798]
[1758902645939,0.48992528,3956.0,3955.9,8.4798]
[1758902646439,0.48992528,3956.0,3955.9,8.93454]
[1758902648638,0.1333,3957.5,3956.9,0.45462]
[1758902648843,0.1333,3957.5,3957.4,0.45456]
[1758902649142,0.1333,3957.5,3957.4,9.19653825]
[1758902649531,0.13542284,3957.5,3957.4,9.19653825]
[1758902650042,0.13542284,3957.5,3957.4,14.19653825]
[1758902650543,0.3645,3957.9,3957.8,0.45452]
[1758902650736,0.3645,3957.9,3957.8,3.93432]
[1758902650938,0.3434,3957.9,3957.8,8.93432]
[1758902651340,0.34592629,3957.9,3957.8,8.93432]
[1758902653043,0.34592629,3957.9,3957.8,3.4798]
[1758902653247,0.34592629,3957.9,3957.8,3.2078]
[1758902653542,0.34592629,3957.9,3957.8,3.4788]
[1758902654247,0.1396,3958.0,3957.9,0.45451]
[1758902654544,0.1396,3958.0,3957.9,5.71668825]
[1758902654843,0.1396,3958.5,3958.3,0.45446]
[1758902655038,0.1396,3958.5,3958.4,8.74097825]
[1758902655236,0.14262892,3958.5,3958.4,8.74351489]
[1758902655843,0.1396,3959.0,3958.9,0.45439]
[1758902656039,0.1396,3959.0,3958.9,9.19536825]
[1758902656237,0.483,3959.0,3958.9,9.19536825]
[1758902656540,0.483,3959.0,3958.9,9.82392706]
[1758902656839,0.48488245,3959.0,3958.9,9.82392706]
[1758902657544,0.1384,3959.5,3959.4,0.45433]
[1758902657836,0.1384,3959.5,3959.4,3.93313]
[1758902658341,0.14151689,3959.5,3959.4,3.93313]
[1758902659439,0.48491689,3959.5,3959.4,3.93313]
[1758902662039,0.93923689,3959.5,3959.4,3.93313]
[1758902662245,0.48491689,3959.5,3959.4,3.93313]
[1758902662547,0.48491689,3959.5,3959.4,3.66213]
[1758902662746,0.48491689,3959.5,3959.4,3.93213]
[1758902663436,0.93923689,3959.5,3959.4,3.4778]
[1758902664641,0.93923689,3959.5,3959.4,3.93213]
[1758902664842,0.48491689,3959.5,3959.4,3.93213]
[1758902665847,0.48491689,3959.5,3959.4,3.66213]
[1758902666049,0.48491689,3959.5,3959.4,3.93213]
[1758902666753,0.93923689,3959.5,3959.4,3.4778]
[1758902667350,0.48491689,3959.5,3959.4,3.93213]
[1758902667644,0.93923689,3959.5,3959.4,3.93213]
[1758902668542,0.48491689,3959.5,3959.4,3.93213]
[1758902668845,0.93923689,3959.5,3959.4,3.93213]
[1758902669151,0.48491689,3959.5,3959.4,3.93213]
[1758902669452,0.93923689,3959.5,3959.4,3.93213]
[1758902670144,0.93923689,3959.5,3959.4,3.4778]
[1758902670343,5.93923689,3959.5,3959.4,3.2078]
[1758902670543,5.93923689,3959.5,3959.4,3.38022461]
[1758902670744,0.93923689,3959.5,3959.4,3.38022461]
[1758902671449,0.93923689,3959.5,3959.4,3.83455461]
[1758902671645,0.48491689,3959.5,3959.4,3.83455461]
[1758902672644,0.93923689,3959.5,3959.4,3.11122461]
[1758902672853,0.93923689,3959.5,3959.4,3.38022461]
[1758902673145,0.48491689,3959.5,3959.4,3.83455461]
[1758902674241,0.93923689,3959.5,3959.4,3.83455461]
[1758902674450,0.93923689,3959.5,3959.4,3.56555461]
[1758902674751,0.48491689,3959.5,3959.4,3.83455461]
[1758902675548,0.48491689,3959.5,3959.4,3.11122461]
[1758902675748,0.94811689,3959.5,3959.4,3.38022461]
[1758902676044,0.94811689,3959.5,3959.4,3.83455461]
[1758902676450,0.48491689,3959.5,3959.4,3.83455461]
[1758902676639,0.48491689,3959.5,3959.4,3.56555461]
[1758902676838,0.48491689,3959.5,3959.4,3.83455461]
[1758902678154,0.48491689,3959.5,3959.4,3.56555461]
[1758902678343,0.48491689,3959.5,3959.4,3.11122461]
[1758902678548,0.48491689,3959.5,3959.4,3.83455461]
[1758902681350,0.48491689,3959.5,3959.4,4.73441357]
[1758902681750,0.48491689,3959.5,3959.4,4.46541357]
[1758902681956,0.48491689,3959.5,3959.4,3.56555461]
[1758902682254,0.48491689,3959.5,3959.4,3.83355461]
[1758902682949,5.93923689,3959.5,3959.4,3.37922461]
[1758902683854,5.93923689,3959.5,3959.4,3.11122461]
[1758902684055,5.93923689,3959.5,3959.4,3.37922461]
[1758902684254,0.48491689,3959.5,3959.4,3.37922461]
[1758902684443,0.48491689,3959.5,3959.4,3.83355461]
[1758902684857,0.48491689,3959.5,3959.4,3.37922461]
[1758902685052,0.48491689,3959.5,3959.4,3.83355461]
[1758902686456,0.93923689,3959.5,3959.4,3.83355461]
[1758902686657,0.93923689,3959.5,3959.4,3.37922461]
[1758902686858,0.93923689,3959.5,3959.4,3.83355461]
[1758902687359,0.48491689,3959.5,3959.4,3.83355461]
[1758902687758,0.93923689,3959.5,3959.4,3.83355461]
[1758902687958,0.45437,3959.1,3959.0,4.10765896]
[1758902688164,0.81507,3959.1,3959.0,3.4758]
[1758902689167,2.29564,3959.8,3959.0,3.4758]
[1758902689168,0.31647,3961.5,3960.9,0.45416]
[1758902689357,0.31647,3961.5,3961.4,0.4541]
[1758902689658,0.1432,3962.0,3961.9,0.45405]
[1758902689861,0.1432,3962.0,3961.9,3.93985]
[1758902690058,0.14627329,3962.0,3961.9,3.94298689]
[1758902690259,0.14627329,3962.0,3961.9,3.66498689]
[1758902690467,0.14627329,3962.0,3961.9,3.94298689]
[1758902691066,0.50697329,3962.0,3961.9,3.66498689]
[1758902691266,0.50697329,3962.0,3961.9,4.61928013]
[1758902691462,0.50697329,3962.0,3961.9,3.94298689]
[1758902691663,0.50697329,3962.0,3961.9,3.94198689]
[1758902692466,0.1432,3963.0,3961.9,8.48793689]
[1758902692661,0.1432,3963.0,3962.9,3.2078]
[1758902692858,0.1432,3963.0,3962.9,3.4848]
[1758902693462,0.14499174,3963.0,3962.9,3.4848]
[1758902694469,0.50569174,3963.0,3962.9,3.4848]
[1758902697373,0.50569174,3963.0,3962.9,3.2078]
[1758902697574,0.50569174,3963.0,3962.9,3.4848]
[1758902698572,0.50569174,3963.0,3962.9,9.37553706]
[1758902699874,0.50569174,3963.0,3962.9,9.09853706]
[1758902700078,0.50569174,3963.0,3962.9,9.37553706]
[1758902700269,0.50569174,3963.0,3962.9,9.09853706]
[1758902700575,0.50569174,3963.0,3962.9,9.37553706]
[1758902701576,1.0754,3963.3,3962.9,15.51036706]
[1758902701872,1.0754,3963.3,3963.2,0.4539]
[1758902702067,0.1432,3963.5,3963.4,0.45388]
[1758902702268,0.1432,3963.5,3963.4,3.93868]
[1758902702671,9.44e-06,3963.5,3963.4,3.93868]
[1758902702976,0.1432,3964.0,3963.9,0.45382]
[1758902703176,0.1432,3964.0,3963.9,3.93762]
[1758902703370,0.1432,3964.0,3963.9,3.66162]
[1758902703572,0.5039,3964.0,3963.9,3.93762]
[1758902703770,0.50713877,3964.0,3963.9,3.93762]
[1758902704578,0.50713877,3964.0,3963.9,3.66162]
[1758902704779,0.50713877,3964.0,3963.9,3.93762]
[1758902705484,0.50713877,3964.0,3963.9,3.66162]
[1758902705683,0.50713877,3964.0,3963.9,3.93762]
[1758902706080,0.50713877,3964.0,3963.9,3.66162]
[1758902706285,0.50713877,3964.0,3963.9,3.93762]
[1758902706480,0.50713877,3964.0,3963.9,3.66162]
[1758902706686,0.50713877,3964.0,3963.9,3.2078]
[1758902706887,0.50713877,3964.0,3963.9,3.4838]
[1758902707088,5.50713877,3964.0,3963.9,3.2078]
[1758902707393,1.79695596,3967.1,3965.2,11.34178]
[1758902707690,3.2298,3967.9,3966.8,6.34421706]
[1758902707691,0.1631,3967.0,3966.8,6.34421706]
[1758902707893,0.1631,3967.0,3966.9,3.4858]
[1758902708392,0.1631,3967.0,3966.9,0.00238166]
[1758902708393,5.16564373,3967.0,3966.9,0.00238166]
[1758902709185,0.54404373,3967.0,3966.9,0.00238166]
[1758902709586,0.54404373,3967.0,3966.9,3.48818166]
[1758902710188,0.54404373,3967.0,3966.9,3.21018166]
[1758902710389,0.54404373,3967.0,3966.9,3.48818166]
[1758902710885,0.54404373,3967.0,3966.9,0.00238166]
[1758902711080,0.45356,3966.2,3966.1,3.2078]
[1758902711386,0.1752,3965.5,3965.4,2.78595267]
[1758902711592,0.5978,3965.5,3965.4,0.278]
[1758902712085,0.5978,3965.5,3965.4,8.95714331]
[1758902714287,0.5978,3965.5,3965.4,13.95714331]
[1758902714485,0.16564373,3967.0,3966.7,0.45349]
[1758902714788,0.16564373,3967.0,3966.8,0.278]
[1758902714987,0.1752,3966.5,3966.3,3.2078]
[1758902715190,0.1752,3966.0,3965.7,3.66141]
[1758902715385,0.1752,3966.0,3965.8,0.73159]
[1758902715586,0.1752,3966.0,3965.8,0.278]
[1758902715785,0.45359,3965.9,3965.7,3.2078]
[1758902715982,0.45359,3965.9,3965.8,0.278]
[1758902716184,0.45359,3965.9,3965.4,0.00245358]
[1758902716185,5.45359,3965.9,3965.4,0.00245358]
[1758902716496,0.5978,3965.5,3965.4,0.00245358]
[1758902716887,5.5978,3965.5,3965.4,0.28045358]
[1758902717483,5.5978,3965.5,3965.4,0.00245358]
[1758902718594,0.5978,3965.5,3965.4,0.00245358]
[1758902720587,5.5978,3965.5,3964.9,3.6615]
[1758902720895,5.5978,3965.5,3964.5,3.2078]
[1758902720896,0.1752,3965.0,3964.5,3.2078]
[1758902721086,0.6289,3965.0,3964.7,0.73072]
[1758902721287,0.4226,3964.8,3964.7,0.73072]
[1758902721696,0.4226,3964.8,3964.7,0.73271545]
[1758902722090,0.4226,3964.8,3964.7,3.16826812]
[1758902723997,0.4226,3964.8,3964.7,2.89126812]
[1758902724296,0.4226,3964.8,3964.7,3.16826812]
[1758902726195,0.4226,3964.8,3964.7,3.16726812]
[1758902727491,0.4226,3964.8,3964.7,0.45571545]
[1758902727692,0.4226,3964.8,3964.7,0.73171545]
[1758902727896,0.4226,3964.8,3964.7,0.27799545]
[1758902727897,0.87632,3964.8,3964.7,0.27799545]
[1758902728093,0.4226,3964.8,3964.7,0.27799545]
[1758902728294,0.87632,3964.8,3964.7,0.27799545]
[1758902728601,0.87632,3964.8,3964.7,0.00199545]
[1758902728801,0.87632,3964.8,3964.7,0.27799545]
[1758902729003,5.87632,3964.8,3964.7,0.00199545]
[1758902729204,5.87632,3964.8,3964.1,3.2078]
[1758902729205,0.45378,3964.2,3964.1,3.2078]
[1758902729695,5.87638,3964.2,3964.1,3.2078]
[1758902730304,0.4252303,3964.2,3964.1,3.48647444]
[1758902731994,0.4252303,3964.2,3964.1,3.21047444]
[1758902732191,0.4252303,3964.2,3964.1,3.48647444]
[1758902732397,0.4252303,3964.2,3964.1,3.94026444]
[1758902733804,0.4252303,3964.2,3964.1,3.66426444]
[1758902734010,0.4252303,3964.2,3964.1,3.94026444]
[1758902734302,5.8790103,3964.2,3964.1,0.00267444]
[1758902736908,0.87648,3963.4,3963.3,3.2078]
[1758902737108,0.87648,3963.4,3963.3,3.4828]
[1758902737801,0.87648,3963.4,3963.3,3.21052636]
[1758902738410,0.87648,3963.4,3963.3,0.00272636]
[1758902738912,0.4226,3963.4,3963.3,0.00272636]
[1758902739105,0.4226,3963.4,3963.3,3.66441636]
[1758902739604,0.4226,3963.4,3963.3,6.37496903]
[1758902740503,0.4226,3963.4,3963.3,3.93941636]
[1758902742200,0.4226,3963.4,3963.3,3.66441636]
[1758902742403,0.4226,3963.4,3963.3,3.93841636]
[1758902742603,3.383,3964.5,3964.0,0.4538]
[1758902742805,0.45378,3964.2,3964.1,0.274]
[1758902743305,0.45378,3964.2,3964.1,1.48013237]
[1758902743503,0.45378,3964.2,3964.1,1.20613237]
[1758902743710,0.1653,3963.5,3963.4,3.2078]
[1758902744010,0.1653,3963.5,3963.3,0.00272636]
[1758902744011,0.45388,3963.4,3963.3,0.00272636]
[1758902744307,5.45388,3963.4,3963.3,0.00272636]
[1758902744705,5.88598,3963.4,3963.3,0.00272636]
[1758902744903,0.88598,3963.4,3963.3,0.00272636]
[1758902745208,5.88598,3963.4,3963.3,0.00272636]
[1758902745509,5.88598,3963.4,3963.3,1.20885873]
[1758902745510,0.4321,3963.4,3963.3,1.20885873]
[1758902746007,0.4321,3963.4,3963.3,0.27672636]
[1758902746606,0.88598,3963.4,3963.3,0.27672636]
[1758902747112,0.4321,3963.4,3963.3,0.27672636]
[1758902747610,0.88598,3963.4,3963.3,0.27672636]
[1758902747907,0.88598,3963.4,3963.3,0.00272636]
[1758902749003,0.4321,3963.4,3963.3,0.00272636]
[1758902749402,0.88598,3963.4,3963.3,0.00272636]
[1758902750207,0.4321,3963.4,3963.3,0.00272636]
[1758902750616,0.4321,3963.4,3963.3,1.66274873]
[1758902753511,0.1653,3964.0,3963.3,11.3718534]
[1758902753710,0.61911,3964.0,3963.9,3.66162]
[1758902753910,0.61911,3964.0,3963.9,3.2078]
[1758902754616,5.6221982,3964.0,3963.9,3.2078]
[1758902755414,5.6004882,3964.0,3963.4,3.2078]
[1758902755612,0.88595,3963.6,3963.5,0.272]
[1758902756215,0.4321,3963.6,3963.5,0.68842669]
[1758902756612,0.4321,3963.6,3963.5,1.14228669]
[1758902757410,0.88595,3963.6,3963.5,0.68842669]
[1758902759311,0.88595,3963.6,3963.4,3.2078]
[1758902759517,1.05126,3963.5,3963.4,3.2078]
[1758902759713,0.5974,3963.5,3963.4,3.4798]
[1758902760218,0.5974,3963.5,3963.4,4.35010669]
[1758902760518,0.5974,3963.5,3963.4,5.02570135]
[1758902760719,1.30959,3964.5,3963.4,5.02570135]
[1758902760720,1.30945,3965.0,3963.8,1.39547]
[1758902760912,0.45376,3964.4,3964.3,3.25543849]
[1758902761114,0.1653,3964.5,3964.4,0.04763849]
[1758902761310,0.5974,3964.5,3964.4,0.04763849]
[1758902761513,0.5974,3964.5,3964.4,0.50139849]
[1758902761514,0.4321,3964.5,3964.4,0.50139849]
[1758902761723,0.43519275,3964.5,3964.4,0.76229849]
[1758902761923,0.43519275,3964.5,3964.4,0.04763849]
[1758902762223,0.60049275,3964.5,3964.4,0.77339849]
[1758902762722,0.43519275,3964.5,3964.4,1.03429849]
[1758902763016,0.43519275,3964.5,3964.4,1.45000613]
[1758902763222,0.60049275,3964.5,3964.4,1.45000613]
[1758902763524,1.05424275,3964.5,3964.4,0.04763849]
[1758902763723,0.1653,3964.0,3963.9,4.33822764]
[1758902763922,0.16839275,3964.5,3964.3,0.04763849]
[1758902764214,0.60049275,3964.5,3964.4,3.4788]
[1758902764416,0.00309275,3964.5,3964.4,3.78733849]
[1758902764624,0.43519275,3964.5,3964.4,3.52643849]
[1758902764826,0.60049275,3964.5,3964.4,3.2078]
[1758902765120,0.4321,3964.2,3964.0,3.6616]
[1758902765309,0.4321,3964.2,3964.1,0.271]
[1758902765516,0.4321,3964.2,3964.1,0.31863849]
[1758902765711,0.4321,3964.2,3964.1,0.04763849]
[1758902765916,0.8859,3964.1,3964.0,3.2078]
[1758902766121,0.8859,3964.1,3964.0,3.4788]
[1758902766624,0.4321,3964.1,3964.0,3.4788]
[1758902768827,0.4321,3964.1,3964.0,3.2078]
[1758902769228,0.4321,3964.1,3964.0,3.4788]
[1758902770824,0.7114,3964.1,3964.0,3.7797]
[1758902771225,1.1652,3964.1,3964.0,3.7797]
[1758902771427,1.4457,3964.1,3964.0,3.5087]
[1758902771627,1.4457,3964.1,3964.0,3.7787]
[1758902771829,0.9919,3964.1,3964.0,3.7787]
[1758902772133,0.7114,3964.1,3964.0,3.7787]
[1758902772335,1.1652,3964.1,3964.0,4.0526]
[1758902772632,0.7114,3964.1,3964.0,4.50641]
[1758902772929,0.16839275,3964.5,3964.4,0.45376]
[1758902773131,0.16839275,3964.5,3964.4,0.89373849]
[1758902773427,0.16839275,3964.5,3964.4,4.55529849]
[1758902773626,0.00309275,3964.5,3964.4,4.82099849]
[1758902774119,0.4416,3964.9,3964.8,0.45371]
[1758902774326,0.4416,3965.7,3965.0,0.3978]
[1758902774524,0.4416,3965.7,3965.6,0.45362]
[1758902774823,0.4416,3965.7,3965.6,0.72462]
[1758902775333,0.89763487,3965.7,3965.6,0.271]
[1758902775625,0.44402487,3965.7,3965.6,0.271]
[1758902776033,0.00242487,3965.7,3965.6,0.5812]
[1758902776529,0.44402487,3965.7,3965.6,0.5812]
[1758902776734,0.44402487,3965.7,3965.6,0.3102]
[1758902776927,0.44402487,3965.7,3965.6,0.5812]
[1758902777224,0.45367,3965.2,3964.8,0.67440626]
[1758902777428,0.4416,3964.9,3964.7,0.45372]
[1758902777633,0.89527,3965.2,3965.0,0.3102]
[1758902777825,0.89527,3965.2,3965.1,0.271]
[1758902778022,0.4416,3965.4,3965.1,0.5812]
[1758902778223,0.4416,3965.4,3965.2,3.518]
[1758902778420,0.89526,3965.3,3965.2,3.2078]
[1758902778622,0.89526,3965.3,3965.2,0.271]
[1758902779024,0.45366,3965.3,3965.2,0.271]
[1758902779227,0.89526,3965.3,3965.2,0.271]
[1758902779628,0.45368,3965.1,3964.8,3.518]
[1758902779827,0.8953,3964.9,3964.8,3.2078]
[1758902780332,0.8953,3964.9,3964.8,3.4788]
[1758902780528,0.00242487,3965.7,3965.1,0.3102]
[1758902780727,0.00242487,3965.7,3965.6,3.518]
[1758902780925,0.00242487,3965.7,3965.6,3.789]
[1758902782031,0.00242487,3965.7,3965.6,8.789]
[1758902782231,0.00242487,3965.7,3965.6,9.46252333]
[1758902782435,0.00242487,3965.7,3965.6,8.789]
[1758902784032,0.0098,3966.3,3966.2,0.76135]
[1758902784336,0.1698,3967.0,3966.9,0.45347]
[1758902784536,0.6114,3967.0,3966.9,3.4788]
[1758902785127,0.61399137,3967.0,3966.9,3.48078163]
[1758902785530,5.61399137,3967.0,3966.9,0.00198163]
[1758902785932,1.13369,3966.9,3966.5,3.4788]
[1758902786125,0.4416,3966.8,3966.5,3.2078]
[1758902786330,0.45351,3966.6,3966.5,3.2078]
[1758902786535,0.4416,3966.4,3966.2,0.271]
[1758902786731,0.1698,3966.5,3966.1,3.2078]
[1758902786938,0.89515,3966.2,3966.1,3.21049592]
[1758902787134,0.4416,3966.2,3966.1,3.21049592]
[1758902788133,0.4416,3966.2,3966.1,3.48049592]
[1758902788335,1.0147,3966.2,3966.1,3.48049592]
[1758902789132,1.0147,3966.2,3966.1,3.21049592]
[1758902789332,1.0147,3966.2,3966.1,0.00269592]
[1758902791537,1.46825,3966.2,3966.1,0.00269592]
[1758902793132,1.0147,3966.2,3966.1,0.30489592]
[1758902793332,1.46825,3966.2,3966.1,0.30489592]
[1758902794035,1.46825,3966.2,3966.1,0.00269592]
[1758902794929,6.46825,3966.2,3966.1,0.00269592]
[1758902795134,1.46831,3965.7,3965.6,3.2078]
[1758902795641,1.0147,3965.7,3965.6,3.2078]
[1758902795838,1.46831,3965.7,3965.6,3.2078]
[1758902796038,1.46831,3965.7,3965.6,3.21026395]
[1758902801248,6.46831,3965.7,3965.6,0.00246395]
[1758902801635,6.46831,3965.7,3964.6,3.2078]
[1758902801636,0.4033,3964.7,3964.6,3.7949]
[1758902801836,0.4033,3965.3,3964.9,0.2952]
[1758902802043,0.6842,3965.3,3965.2,0.5871]
[1758902802341,1.13788,3965.1,3965.0,3.5085]
[1758902802644,0.6842,3965.3,3965.2,0.5871]
[1758902803137,0.6842,3965.3,3965.2,1.04077]
[1758902803336,1.42306,3965.3,3965.2,0.3007]
[1758902803736,0.8504,3965.5,3965.4,1.04075]
[1758902803945,1.30404,3965.5,3965.4,0.5871]
[1758902804437,1.30404,3965.5,3965.4,0.3007]
[1758902804438,1.58924,3965.5,3965.4,0.3007]
[1758902805241,1.42305,3965.4,3965.3,0.268]
[1758902805537,0.73457,3965.2,3965.1,0.3007]
[1758902805731,0.6842,3965.2,3965.1,1.30878]
[1758902805931,1.42307,3965.2,3965.1,0.5871]
[1758902806242,1.42307,3965.2,3965.1,1.04078]
[1758902806243,0.9694,3965.2,3965.1,1.04078]
[1758902806442,0.9694,3965.2,3965.1,1.30878]
[1758902806836,1.42307,3965.2,3965.1,0.8551]
[1758902807343,1.42308,3965.1,3965.0,3.51130868]
[1758902807544,0.6842,3965.1,3965.0,4.06570868]
[1758902807841,0.6842,3965.1,3965.0,4.36090868]
[1758902808041,1.13788,3965.1,3965.0,4.36090868]
[1758902808442,0.6842,3965.1,3965.0,4.36090868]
[1758902808839,0.6842,3965.1,3965.0,4.54659868]
[1758902809036,0.6842,3965.1,3965.0,4.81459868]
[1758902809243,0.0252,3965.8,3965.7,0.8823]
[1758902809437,0.4285,3965.8,3965.7,4.81171]
[1758902809632,0.4033,3965.8,3965.7,4.81171]
[1758902811640,0.4033,3965.8,3965.7,4.3581]
[1758902811841,0.4033,3965.8,3965.7,4.54371]
[1758902812045,0.4033,3965.8,3965.7,4.81171]
[1758902812837,0.6842,3965.8,3965.7,4.51651]
[1758902813038,1.423,3965.8,3965.7,3.7949]
[1758902813241,1.423,3965.8,3965.7,3.2078]
[1758902813642,0.9694,3965.3,3965.2,0.67152871]
[1758902813948,1.42306,3965.3,3965.2,0.5687]
[1758902814251,1.42306,3965.3,3965.2,0.8551]
[1758902814642,0.9694,3965.3,3965.2,1.30877]
[1758902814841,1.42306,3965.3,3965.2,0.5687]
[1758902815043,1.42307,3965.2,3965.1,3.2078]
[1758902815241,1.42307,3965.2,3965.1,3.4758]
[1758902815745,1.42307,3965.2,3965.1,3.2078]
[1758902815948,1.42307,3965.2,3965.0,0.00280868]
[1758902815949,1.42308,3965.1,3965.0,0.00280868]
[1758902816349,6.42308,3965.1,3965.0,0.00280868]
[1758902818051,0.73463,3964.7,3964.6,3.2078]
[1758902818259,1.42313,3964.7,3964.6,3.2078]
[1758902818755,0.4033,3964.7,3964.6,4.81084]
[1758902819157,0.4033,3964.9,3964.6,4.51882201]
[1758902819358,0.6842,3964.9,3964.8,0.5871]
[1758902819562,0.9694,3964.9,3964.8,0.8541]
[1758902819755,0.1662,3965.0,3964.8,1.1493]
[1758902819960,0.1662,3965.0,3964.9,0.8823]
[1758902820158,1.1356,3965.0,3964.9,0.8823]